bitfinex-derivatives/quotes_BTCF0:USTF0_20250329
["timestamp","ask_amount","ask_price","bid_price","bid_amount"]
[1743282314959,0.21367913,82460.0,82459.0,0.12244349]
[1743282315159,0.21367913,82460.0,82459.0,0.00112509]
[1743282317270,0.21367913,82460.0,82459.0,0.12244349]
[1743282317671,0.21367913,82460.0,82459.0,0.00112509]
[1743282318060,0.21367913,82460.0,82459.0,0.12244349]
[1743282318464,0.21393274,82460.0,82459.0,0.12244349]
[1743282318765,0.20171143,82460.0,82459.0,0.18804349]
[1743282318967,0.19164049,82460.0,82459.0,0.18804349]
[1743282319868,0.06366,82460.0,82459.0,0.18804349]
[1743282320068,0.0629,82460.0,82459.0,0.22074349]
[1743282320474,0.184217,82460.0,82459.0,0.22074349]
[1743282320679,0.0637,82460.0,82459.0,0.22074349]
[1743282320863,0.0311,82460.0,82459.0,0.22074349]
[1743282321063,0.0303,82460.0,82459.0,0.22074349]
[1743282321563,0.10860628,82466.0,82465.0,0.1213096]
[1743282321769,0.10940628,82466.0,82465.0,0.1219896]
[1743282322272,0.10860628,82466.0,82465.0,0.1219896]
[1743282322471,0.14480837,82473.0,82472.0,0.1212993]
[1743282322676,0.14564837,82473.0,82472.0,0.2476993]
[1743282322872,0.14556837,82473.0,82472.0,0.2476993]
[1743282323071,0.14556837,82473.0,82472.0,0.3115993]
[1743282324175,0.26686617,82473.0,82472.0,0.3115993]
[1743282325978,0.1220578,82473.0,82472.0,0.3115993]
[1743282328070,0.1220578,82473.0,82472.0,0.6723993]
[1743282328270,0.1212978,82473.0,82472.0,0.6723993]
[1743282329482,0.03,82474.0,82473.0,0.1212978]
[1743282329681,0.1525866,82481.0,82480.0,0.1212875]
[1743282329870,0.1837861,82481.0,82480.0,0.4820875]
[1743282330071,0.1845461,82481.0,82480.0,0.4827275]
[1743282330578,0.00076,82481.0,82480.0,0.4827275]
[1743282330774,0.14480837,82493.0,82481.0,0.1212861]
[1743282330775,0.0312,82483.0,82481.0,0.1212861]
[1743282330980,0.0312,82483.0,82481.0,0.2790261]
[1743282331673,0.00094178,82482.0,82481.0,0.2790261]
[1743282331875,0.00094178,82482.0,82481.0,0.2913309]
[1743282333072,0.03114178,82482.0,82481.0,0.2913309]
[1743282333672,0.00018178,82482.0,82481.0,0.2913309]
[1743282335168,0.0090837,82494.0,82493.0,0.1212684]
[1743282335378,0.1212652,82496.0,82495.0,0.1212655]
[1743282335577,0.1212652,82496.0,82495.0,0.1220255]
[1743282335780,0.1220252,82496.0,82495.0,0.1220255]
[1743282341083,0.00076,82496.0,82495.0,0.1220255]
[1743282341576,0.1822596,82499.0,82498.0,0.1212611]
[1743282341774,0.1830196,82499.0,82498.0,0.1219011]
[1743282342576,0.06176,82499.0,82498.0,0.1219011]
[1743282343073,0.061,82499.0,82498.0,0.1219011]
[1743282344875,0.1822596,82499.0,82498.0,0.1219011]
[1743282346585,0.1830596,82499.0,82498.0,0.1219011]
[1743282351786,0.1830596,82499.0,82498.0,0.1551011]
[1743282351986,0.1830596,82499.0,82498.0,0.1219011]
[1743282355292,0.1830596,82499.0,82498.0,0.4827011]
[1743282357891,0.1830596,82499.0,82498.0,0.1219011]
[1743282358093,0.1830596,82499.0,82498.0,0.4827011]
[1743282358490,0.0618,82499.0,82498.0,0.4827011]
[1743282358695,0.061,82499.0,82498.0,0.4827011]
[1743282360391,0.1822596,82499.0,82498.0,0.4827011]
[1743282360586,0.1830196,82499.0,82498.0,0.4827011]
[1743282361902,0.06176,82499.0,82498.0,0.4827011]
[1743282362096,0.0004,82500.0,82499.0,0.1212596]
[1743282362397,0.0001819,82504.0,82503.0,0.1212537]
[1743282362592,0.0001819,82504.0,82503.0,0.1219737]
[1743282362900,0.0001819,82504.0,82503.0,0.13397545]
[1743282363190,0.17730837,82514.0,82513.0,0.121239]
[1743282363392,0.17730837,82514.0,82513.0,0.121879]
[1743282363393,0.29930597,82514.0,82513.0,0.121879]
[1743282363990,0.29930597,82514.0,82513.0,0.153279]
[1743282364195,0.29930597,82514.0,82513.0,0.03204]
[1743282364401,0.29930597,82514.0,82513.0,0.00064]
[1743282364402,0.1544976,82514.0,82513.0,0.00064]
[1743282365197,0.1544976,82514.0,82513.0,0.121879]
[1743282365496,0.2157976,82514.0,82513.0,0.121879]
[1743282367185,0.45536,82514.0,82505.0,0.0001819]
[1743282367385,0.4820493,82506.0,82505.0,0.0009019]
[1743282367593,0.4830493,82506.0,82505.0,0.0009019]
[1743282367798,0.1222493,82506.0,82505.0,0.1223927]
[1743282368200,0.1989547,82506.0,82505.0,0.1223927]
[1743282368995,0.1989547,82506.0,82505.0,0.0011419]
[1743282370798,0.5597547,82506.0,82505.0,0.0011419]
[1743282371892,0.5597547,82506.0,82505.0,0.0001819]
[1743282372294,0.5597547,82506.0,82505.0,3.762e-05]
[1743282373802,0.5597547,82506.0,82505.0,0.00067762]
[1743282375301,0.5597547,82506.0,82505.0,0.12192842]
[1743282376105,0.1989547,82506.0,82505.0,0.12192842]
[1743282383097,0.1989547,82506.0,82505.0,0.00067762]
[1743282383296,0.1989547,82506.0,82505.0,3.762e-05]
[1743282384607,0.2293547,82506.0,82505.0,3.762e-05]
[1743282385311,0.2293547,82506.0,82505.0,0.03107762]
[1743282385917,0.2293547,82506.0,82505.0,0.03043762]
[1743282386098,0.2293547,82506.0,82505.0,0.03107762]
[1743282386497,0.2293547,82506.0,82505.0,0.15232842]
[1743282390711,0.1989547,82506.0,82505.0,0.15232842]
[1743282393104,0.1989547,82506.0,82505.0,0.03107762]
[1743282393507,0.1989547,82506.0,82505.0,0.03043762]
[1743282393713,0.1989547,82506.0,82505.0,3.762e-05]
[1743282396804,0.001,82506.0,82505.0,0.12128842]
[1743282397009,0.001,82506.0,82505.0,0.18312842]
[1743282398212,0.1222493,82506.0,82505.0,0.18312842]
[1743282398612,0.14580837,82506.0,82505.0,0.19516693]
[1743282401323,0.18079212,82511.0,82510.0,0.1212434]
[1743282401521,0.18151212,82511.0,82510.0,0.1218834]
[1743282402125,0.18151212,82511.0,82510.0,0.1831834]
[1743282403326,0.00072,82511.0,82510.0,0.1831834]
[1743282404017,0.1212361,82515.0,82514.0,0.1212376]
[1743282404218,0.1219961,82515.0,82514.0,0.4827576]
[1743282404518,0.1212361,82515.0,82514.0,0.4827576]
[1743282404713,0.1219161,82515.0,82514.0,0.5439576]
[1743282405116,0.00068,82515.0,82514.0,0.5439576]
[1743282405823,0.0004,82516.0,82515.0,0.1212361]
[1743282406125,0.0004,82516.0,82515.0,0.1218761]
[1743282406319,0.0004,82516.0,82515.0,0.1863761]
[1743282408523,0.0004,82516.0,82515.0,0.3090161]
[1743282409434,0.1216346,82516.0,82515.0,0.3090161]
[1743282409736,0.1223946,82516.0,82515.0,0.3090161]
[1743282414536,0.1216346,82516.0,82515.0,0.3090161]
[1743282415035,0.1223146,82516.0,82515.0,0.3090161]
[1743282418135,0.1223146,82516.0,82515.0,0.6698161]
[1743282418937,0.1223946,82516.0,82515.0,0.6698161]
[1743282420533,0.0927153,82519.0,82516.0,0.1818483]
[1743282420731,0.0927153,82519.0,82516.0,0.0614166]
[1743282420732,0.1212332,82517.0,82516.0,0.0614166]
[1743282420941,0.1220332,82517.0,82516.0,0.0614166]
[1743282421241,0.0008,82517.0,82516.0,0.0614166]
[1743282421437,0.0606153,82519.0,82518.0,0.1212317]
[1743282421641,0.0606153,82519.0,82518.0,0.1220317]
[1743282421642,0.0614153,82519.0,82518.0,0.1220317]
[1743282424737,0.0008,82519.0,82518.0,0.1220317]
[1743282424942,0.0931138,82521.0,82520.0,0.1212287]
[1743282425144,0.0937538,82521.0,82520.0,0.1220287]
[1743282427132,0.0931138,82521.0,82520.0,0.1220287]
[1743282427535,0.0325,82521.0,82520.0,0.1220287]
[1743282427738,0.03342,82521.0,82520.0,0.1220287]
[1743282427944,0.0325,82521.0,82520.0,0.1220287]
[1743282430048,0.1840273,82521.0,82520.0,0.1220287]
[1743282430644,0.0628,82521.0,82520.0,0.1220287]
[1743282432637,0.0628,82521.0,82520.0,0.4828287]
[1743282433043,0.0628,82521.0,82520.0,0.1220287]
[1743282433244,0.1840273,82521.0,82520.0,0.4828287]
[1743282434039,0.1840273,82521.0,82520.0,0.1220287]
[1743282434345,0.1848673,82521.0,82520.0,0.4828287]
[1743282434943,0.1848673,82521.0,82520.0,0.5160287]
[1743282435746,0.0628,82521.0,82520.0,0.5160287]
[1743282435947,0.1212146,82530.0,82529.0,0.1212155]
[1743282436245,0.1218546,82530.0,82529.0,0.1220155]
[1743282436647,0.1218546,82530.0,82529.0,0.1531155]
[1743282436851,0.00064,82530.0,82529.0,0.1531155]
[1743282437245,0.00064,82530.0,82529.0,0.1855155]
[1743282438348,0.0327,82531.0,82530.0,0.1212141]
[1743282438651,0.0327,82531.0,82530.0,0.13408102]
[1743282438849,0.0004,82532.0,82531.0,0.1212126]
[1743282439048,0.0004,82532.0,82531.0,0.13117022]
[1743282439354,0.0004,82532.0,82531.0,0.19467022]
[1743282440946,0.1216111,82532.0,82531.0,0.19467022]
[1743282441155,0.1224911,82532.0,82531.0,0.19467022]
[1743282441453,0.00128,82532.0,82531.0,0.19467022]
[1743282442462,0.0004,82532.0,82531.0,0.19467022]
[1743282443157,0.1216111,82532.0,82531.0,0.19467022]
[1743282443357,0.1224111,82532.0,82531.0,0.19467022]
[1743282444049,0.1224111,82532.0,82531.0,0.55547022]
[1743282447557,0.00018179,82538.0,82537.0,0.1212038]
[1743282447756,0.00018179,82538.0,82537.0,0.1222438]
[1743282447951,0.00018179,82538.0,82537.0,0.2150438]
[1743282448554,0.0309,82545.0,82544.0,0.1211935]
[1743282448760,0.00104001,82545.0,82544.0,0.1222335]
[1743282449062,0.0605949,82547.0,82546.0,0.1211891]
[1743282449256,0.0605949,82547.0,82546.0,0.1847291]
[1743282449653,0.0605925,82550.0,82547.0,0.1211891]
[1743282449854,0.1211871,82549.0,82547.0,0.1836891]
[1743282450060,0.00104,82548.0,82547.0,0.1847291]
[1743282450257,0.1222276,82548.0,82547.0,0.1847291]
[1743282450652,0.00104,82548.0,82547.0,0.1847291]
[1743282450954,0.00104,82548.0,82547.0,0.5455291]
[1743282450955,0.0004,82548.0,82547.0,0.5455291]
[1743282451360,0.00104,82548.0,82547.0,0.6677691]
[1743282451556,0.0004,82548.0,82547.0,0.6677691]
[1743282453162,0.0004,82548.0,82547.0,0.68322053]
[1743282454062,0.0004,82548.0,82547.0,0.90096048]
[1743282455255,0.0004,82548.0,82547.0,0.90096524]
[1743282458156,0.0004,82548.0,82547.0,0.68322529]
[1743282458968,0.00018179,82555.0,82554.0,0.1211788]
[1743282459168,0.0337218,82555.0,82554.0,0.4830188]
[1743282459367,0.1548991,82555.0,82554.0,0.4830188]
[1743282459570,0.15385909,82555.0,82554.0,0.4830188]
[1743282459767,0.15385909,82555.0,82554.0,0.5452188]
[1743282459768,0.0338018,82555.0,82554.0,0.5452188]
[1743282460772,0.1549791,82555.0,82554.0,0.5452188]
[1743282461073,0.0649018,82555.0,82554.0,0.5452188]
[1743282462763,0.0013018,82555.0,82554.0,0.5452188]
[1743282462967,0.0004,82564.0,82563.0,0.1211656]
[1743282463173,0.00104,82564.0,82563.0,0.1211656]
[1743282463363,0.00104,82564.0,82563.0,0.1225256]
[1743282464378,0.1222041,82564.0,82563.0,0.1225256]
[1743282464760,0.1851041,82564.0,82563.0,0.1225256]
[1743282473570,0.1851041,82564.0,82563.0,0.1852256]
[1743282478267,0.1851041,82564.0,82563.0,0.20087719]
[1743282480083,0.1851041,82564.0,82563.0,0.20094035]
[1743282481183,0.1851041,82564.0,82563.0,0.1852256]
[1743282483277,0.5459041,82564.0,82563.0,0.01681147]
[1743282483481,0.5459041,82564.0,82563.0,0.00136]
[1743282486771,0.1211656,82563.0,82562.0,0.00065]
[1743282487078,0.1834056,82563.0,82562.0,0.00065]
[1743282488979,0.5442056,82563.0,82562.0,0.00065]
[1743282493281,0.1211759,82556.0,82555.0,0.18515809]
[1743282493482,0.1211759,82556.0,82555.0,0.21949809]
[1743282493483,0.1226159,82556.0,82555.0,0.21949809]
[1743282503097,0.00144,82556.0,82555.0,0.21949809]
[1743282503394,0.4092,82565.0,82563.0,0.1211656]
[1743282503698,0.26756381,82564.0,82563.0,0.1380873]
[1743282503902,0.1229241,82564.0,82563.0,0.1380873]
[1743282504393,0.1229241,82564.0,82563.0,0.2329873]
[1743282505093,0.1229241,82564.0,82563.0,0.2174256]
[1743282507587,0.1215641,82564.0,82563.0,0.2174256]
[1743282508284,0.00018179,82572.0,82571.0,0.1211539]
[1743282508485,0.00018179,82572.0,82571.0,0.1225139]
[1743282508707,0.00154179,82572.0,82571.0,0.2154139]
[1743282508900,0.12133419,82572.0,82571.0,0.2154139]
[1743282509087,0.12277419,82572.0,82571.0,0.2154139]
[1743282512000,0.00162179,82572.0,82571.0,0.2154139]
[1743282512192,0.00018179,82572.0,82571.0,0.2154139]
[1743282513198,0.00162179,82572.0,82571.0,0.2154139]
[1743282513398,0.00018179,82572.0,82571.0,0.2154139]
[1743282513701,0.0004,82580.0,82579.0,0.1211421]
[1743282513896,0.00176,82580.0,82579.0,0.1225821]
[1743282514093,0.1215407,82580.0,82579.0,0.1225821]
[1743282514297,0.1229807,82580.0,82579.0,0.2164821]
[1743282514491,0.0004,82580.0,82579.0,0.2164821]
[1743282515492,0.00014381,82588.0,82587.0,0.1211304]
[1743282515692,0.00158381,82588.0,82587.0,0.1225704]
[1743282516398,0.12271271,82588.0,82587.0,0.1839704]
[1743282526008,0.00158381,82588.0,82587.0,0.1839704]
[1743282526506,1e-08,82588.0,82587.0,0.1839704]
[1743282528301,1e-08,82588.0,82587.0,0.56026684]
[1743282529113,1e-08,82588.0,82587.0,0.92106684]
[1743282530612,1e-08,82588.0,82587.0,0.9055704]
[1743282531402,0.01824001,82589.0,82588.0,0.1211289]
[1743282531608,0.01824001,82589.0,82588.0,0.8440889]
[1743282531915,0.01824001,82589.0,82588.0,0.9358889]
[1743282532111,0.01824001,82589.0,82588.0,0.2142889]
[1743282532415,0.01824001,82589.0,82588.0,0.9358889]
[1743282532715,0.0605615,82592.0,82591.0,0.1211245]
[1743282532905,0.0605615,82592.0,82591.0,0.2440845]
[1743282533100,0.0605594,82595.0,82591.0,0.48376]
[1743282533317,0.0605594,82595.0,82594.0,0.1211201]
[1743282533613,0.0619994,82595.0,82594.0,0.1225601]
[1743282534111,0.00144,82595.0,82594.0,0.1225601]
[1743282534316,0.0004,82596.0,82595.0,0.1211187]
[1743282534520,0.00180001,82596.0,82595.0,0.1211187]
[1743282534711,0.00184,82596.0,82595.0,0.1861987]
[1743282535218,0.1229572,82596.0,82595.0,0.1861987]
[1743282535418,0.1859572,82596.0,82595.0,0.1861987]
[1743282536514,0.1859572,82596.0,82595.0,0.5469987]
[1743282537016,0.1859572,82596.0,82595.0,0.55910398]
[1743282537518,0.1859572,82596.0,82595.0,0.5469987]
[1743282538718,0.1859572,82596.0,82595.0,0.1861987]
[1743282540822,0.1859572,82596.0,82595.0,0.5469987]
[1743282542624,0.1859572,82596.0,82595.0,0.42588]
[1743282542824,0.1859572,82596.0,82595.0,0.36228]
[1743282543023,0.1859572,82596.0,82595.0,0.4833987]
[1743282543626,0.1859572,82596.0,82595.0,0.36228]
[1743282544925,0.1859572,82596.0,82595.0,0.4833987]
[1743282545516,0.1859572,82596.0,82595.0,0.5475987]
[1743282545918,0.1859572,82596.0,82595.0,0.1867987]
[1743282553624,0.1859572,82596.0,82595.0,0.2185987]
[1743282553825,0.00184,82596.0,82595.0,0.2185987]
[1743282554630,0.0004,82596.0,82595.0,0.2185987]
[1743282555022,0.00184,82596.0,82595.0,0.2185987]
[1743282555223,0.0004,82596.0,82595.0,0.2185987]
[1743282555627,0.0004,82596.0,82595.0,0.23101125]
[1743282556225,0.1,82600.0,82599.0,0.1211128]
[1743282556428,0.18079212,82610.0,82604.0,0.1211055]
[1743282556629,0.14581381,82605.0,82604.0,0.2440255]
[1743282557321,0.14581381,82605.0,82604.0,0.3095255]
[1743282558037,0.00136,82605.0,82604.0,0.3095255]
[1743282558332,0.1210983,82609.0,82604.0,0.3095255]
[1743282558333,0.0004,82612.0,82610.0,0.1210952]
[1743282558526,0.00176,82612.0,82611.0,0.5730952]
[1743282558725,0.00176,82612.0,82611.0,0.5744552]
[1743282559039,0.00176,82612.0,82611.0,0.58651328]
[1743282562330,0.0004,82612.0,82611.0,0.58651328]
[1743282566940,0.1214937,82612.0,82611.0,0.58651328]
[1743282567244,0.1214937,82612.0,82611.0,0.70803328]
[1743282568440,0.1228537,82612.0,82611.0,0.70803328]
[1743282569143,0.1214937,82612.0,82611.0,0.70803328]
[1743282570847,0.0004,82612.0,82611.0,0.70803328]
[1743282571050,0.1214937,82612.0,82611.0,0.70803328]
[1743282572855,0.0004,82612.0,82611.0,0.70803328]
[1743282573838,0.1214937,82612.0,82611.0,0.5436552]
[1743282574042,0.1214937,82612.0,82611.0,0.00136]
[1743282574043,0.1556537,82612.0,82611.0,0.00136]
[1743282574748,0.1879537,82612.0,82611.0,0.00136]
[1743282576253,0.19994537,82612.0,82611.0,0.00136]
[1743282578260,0.1210952,82611.0,82610.0,0.00065]
[1743282578555,0.1210952,82611.0,82603.0,0.1211063]
[1743282578556,0.1211055,82604.0,82603.0,0.1211063]
[1743282578756,0.1224655,82604.0,82603.0,0.1225463]
[1743282579356,0.1852655,82604.0,82603.0,0.1225463]
[1743282579567,0.2172655,82604.0,82603.0,0.00144]
[1743282583064,0.2172655,82604.0,82603.0,0.1225469]
[1743282583968,0.2172655,82604.0,82603.0,0.1873469]
[1743282588367,0.2172655,82604.0,82603.0,0.06624]
[1743282595074,0.2172655,82604.0,82603.0,0.1873469]
[1743282595373,0.1854655,82604.0,82603.0,0.1873469]
[1743282600669,0.1544655,82604.0,82603.0,0.1873469]
[1743282600869,0.1224655,82604.0,82603.0,0.1873469]
[1743282603081,0.1224655,82604.0,82603.0,0.20298386]
[1743282604080,0.1224655,82604.0,82603.0,0.2028811]
[1743282604883,0.1224655,82604.0,82603.0,0.20288133]
[1743282606271,0.1224655,82604.0,82603.0,0.42002438]
[1743282606675,0.00136,82604.0,82603.0,0.42002438]
[1743282606884,0.00136,82604.0,82603.0,0.42001941]
[1743282608678,0.4092,82607.0,82606.0,0.1211025]
[1743282608878,0.4092,82607.0,82606.0,0.13851196]
[1743282609881,0.4092,82607.0,82606.0,0.49931196]
[1743282610089,0.0605476,82611.0,82610.0,0.1210952]
[1743282610287,0.0605476,82611.0,82610.0,0.23106466]
[1743282610675,0.0004,82612.0,82611.0,0.1210952]
[1743282610981,0.0004,82612.0,82611.0,0.20052466]
[1743282611383,0.0004,82612.0,82611.0,0.21286127]
[1743282613284,0.1210798,82622.0,82621.0,0.0605396]
[1743282613488,0.1210798,82622.0,82621.0,0.1593396]
[1743282623095,0.1210798,82622.0,82621.0,0.17453918]
[1743282623898,0.121074,82626.0,82625.0,0.1210732]
[1743282624089,0.121074,82626.0,82625.0,0.1228732]
[1743282624594,0.0004,82628.0,82627.0,0.1210718]
[1743282624798,0.1214703,82628.0,82627.0,0.1229518]
[1743282624990,0.0004,82628.0,82627.0,0.49599754]
[1743282625185,0.1214703,82628.0,82627.0,0.49895138]
[1743282626290,0.1214703,82628.0,82627.0,0.4837518]
[1743282626603,0.0004,82628.0,82627.0,0.4837518]
[1743282626896,0.1214703,82628.0,82627.0,0.4837518]
[1743282627697,0.0004,82628.0,82627.0,0.49902012]
[1743282628807,0.0004,82628.0,82627.0,0.51462676]
[1743282629100,0.0004,82628.0,82627.0,0.51463151]
[1743282629699,0.0605323,82632.0,82627.0,0.51463151]
[1743282629700,0.0319,82635.0,82634.0,0.1210615]
[1743282629894,0.4092,82641.0,82636.0,0.1210571]
[1743282629895,0.121058,82637.0,82636.0,0.1210571]
[1743282630094,0.151158,82637.0,82636.0,0.1228571]
[1743282630693,0.151158,82637.0,82636.0,0.13812542]
[1743282635408,0.181658,82637.0,82636.0,0.13812542]
[1743282636506,0.121058,82637.0,82636.0,0.13812542]
[1743282637109,0.151958,82637.0,82636.0,0.13812542]
[1743282638707,0.182058,82637.0,82636.0,0.13812542]
[1743282639610,0.182058,82637.0,82636.0,0.1228571]
[1743282641703,0.182058,82637.0,82636.0,0.1533571]
[1743282642110,0.121058,82637.0,82636.0,0.1533571]
[1743282644112,0.151658,82637.0,82636.0,0.1533571]
[1743282645211,0.151658,82637.0,82636.0,0.1839571]
[1743282649618,0.151658,82637.0,82636.0,0.1839586]
[1743282649817,0.183058,82637.0,82636.0,0.1839586]
[1743282650611,0.18114314,82658.0,82640.0,0.0605262]
[1743282650822,0.1214469,82644.0,82643.0,0.1210483]
[1743282651009,0.1214469,82644.0,82643.0,0.1228483]
[1743282652401,0.1527469,82644.0,82643.0,0.1228483]
[1743282654413,0.1527469,82644.0,82643.0,0.1864483]
[1743282658016,0.1527469,82644.0,82643.0,0.40389462]
[1743282658923,0.1214469,82644.0,82643.0,0.40389462]
[1743282661418,0.1214469,82644.0,82643.0,0.1864483]
[1743282664727,0.1519469,82644.0,82643.0,0.1864483]
[1743282668229,0.1519469,82644.0,82643.0,0.0018]
[1743282668230,0.5127469,82644.0,82643.0,0.0018]
[1743282668437,0.5762469,82644.0,82643.0,0.0018]
[1743282668631,0.69724855,82644.0,82643.0,0.0018]
[1743282671631,1.10644855,82644.0,82643.0,0.0018]
[1743282671822,0.1210483,82643.0,82642.0,0.00067]
[1743282672221,0.1854483,82643.0,82642.0,0.00067]
[1743282672533,0.1854483,82643.0,82642.0,0.00247]
[1743282674630,0.1854483,82643.0,82642.0,0.00067]
[1743282680040,0.1854483,82643.0,82642.0,0.00247]
[1743282680241,0.1854483,82643.0,82642.0,0.00067]
[1743282680947,0.1854483,82643.0,82638.0,0.183955]
[1743282680948,0.1210542,82639.0,82638.0,0.183955]
[1743282685754,0.1210542,82639.0,82638.0,0.185755]
[1743282686347,0.0004,82644.0,82638.0,0.0647]
[1743282686549,0.1210498,82643.0,82642.0,0.1210483]
[1743282686850,0.0004,82644.0,82642.0,0.1210483]
[1743282686851,0.0004,82644.0,82643.0,0.1210483]
[1743282687048,0.1214469,82644.0,82643.0,0.1852883]
[1743282688049,0.0004,82644.0,82643.0,0.1852883]
[1743282690846,0.0004,82644.0,82643.0,0.19769455]
[1743282691853,0.30217824,82652.0,82651.0,0.1210366]
[1743282692058,0.1210351,82652.0,82651.0,0.13825595]
[1743282692460,0.1210351,82652.0,82651.0,0.1228366]
[1743282692657,0.1210351,82652.0,82651.0,0.1857366]
[1743282693453,0.0605164,82654.0,82653.0,0.1210337]
[1743282693659,0.07247134,82654.0,82653.0,0.1228337]
[1743282693847,0.07247134,82654.0,82653.0,0.135098]
[1743282694052,0.07247134,82654.0,82653.0,0.1228337]
[1743282694355,0.0605164,82654.0,82653.0,0.1228337]
[1743282696251,0.0605164,82654.0,82653.0,0.13481281]
[1743282696659,0.0605164,82654.0,82653.0,0.1228337]
[1743282700558,0.0605164,82654.0,82653.0,0.1854337]
[1743282704269,0.0907164,82654.0,82653.0,0.1854337]
[1743282704964,0.0605164,82654.0,82653.0,0.1854337]
[1743282707963,0.05105,82655.0,82653.0,0.1854337]
[1743282708171,0.0004,82660.0,82659.0,0.1210249]
[1743282708460,0.0004,82660.0,82659.0,0.4836249]
[1743282708663,0.0004,82660.0,82659.0,0.5498249]
[1743282709059,0.0004,82660.0,82659.0,0.60683554]
[1743282710364,0.0004,82660.0,82659.0,0.58115907]
[1743282710868,0.0004,82660.0,82659.0,0.6068661]
[1743282711068,0.0004,82660.0,82659.0,0.58115907]
[1743282713075,0.0004,82660.0,82659.0,0.22035907]
[1743282713274,0.0004,82660.0,82659.0,0.58115907]
[1743282714373,0.0004,82660.0,82659.0,0.56587269]
[1743282714673,0.0004,82660.0,82659.0,0.56544556]
[1743282715770,0.0308,82660.0,82659.0,0.56544556]
[1743282716076,0.1518234,82660.0,82659.0,0.56544556]
[1743282717163,0.1518234,82660.0,82659.0,0.20464556]
[1743282717362,0.1518234,82660.0,82659.0,0.56544556]
[1743282718471,0.1518234,82660.0,82659.0,0.20464556]
[1743282718670,0.1518234,82660.0,82659.0,0.56544556]
[1743282719072,0.1518234,82660.0,82659.0,0.56557812]
[1743282723974,0.1518234,82660.0,82659.0,0.56563861]
[1743282725480,0.1518234,82660.0,82659.0,0.20483861]
[1743282725980,0.1518234,82660.0,82659.0,0.20479052]
[1743282727269,0.0308,82660.0,82659.0,0.20479052]
[1743282727470,0.0004,82660.0,82659.0,0.20479052]
[1743282727879,0.0004,82660.0,82659.0,0.20477854]
[1743282729178,0.0004,82660.0,82659.0,0.21999598]
[1743282730085,0.0004,82660.0,82659.0,0.22014483]
[1743282730582,0.1815123,82672.0,82671.0,0.1210073]
[1743282730780,0.1815123,82672.0,82671.0,0.1228073]
[1743282730976,0.1815123,82672.0,82671.0,0.13874923]
[1743282731177,0.2118123,82672.0,82671.0,0.13874923]
[1743282731377,0.0303,82672.0,82671.0,0.15396667]
[1743282733789,0.30126066,82672.0,82655.0,0.36273364]
[1743282733980,0.1210249,82659.0,82658.0,0.00192]
[1743282734182,0.12226491,82659.0,82658.0,0.00192]
[1743282734778,0.18516491,82659.0,82658.0,0.00192]
[1743282735090,0.59436491,82659.0,82658.0,0.43618791]
[1743282735387,0.1210351,82652.0,82651.0,0.00018156]
[1743282735686,0.12227511,82652.0,82651.0,0.00142156]
[1743282735884,0.12227511,82652.0,82651.0,0.00018156]
[1743282736285,0.18397511,82652.0,82651.0,0.00018156]
[1743282736785,0.19597476,82652.0,82651.0,0.00018156]
[1743282736991,0.19597476,82652.0,82651.0,0.00142156]
[1743282737488,0.19597476,82652.0,82651.0,0.00018156]
[1743282737892,0.19597476,82652.0,82651.0,0.03162156]
[1743282738183,0.19597476,82652.0,82651.0,0.06452156]
[1743282739078,0.19597476,82652.0,82651.0,0.06328156]
[1743282739588,0.19597476,82652.0,82651.0,0.06452156]
[1743282740085,0.19597476,82652.0,82651.0,0.18555816]
[1743282740391,0.22837476,82652.0,82651.0,0.18555816]
[1743282748280,0.22837476,82652.0,82651.0,0.06452156]
[1743282748488,0.22837476,82652.0,82651.0,0.06328156]
[1743282748691,0.13427476,82652.0,82651.0,0.06328156]
[1743282748876,0.22827476,82652.0,82651.0,0.06456156]
[1743282750889,0.22827476,82652.0,82651.0,0.06328156]
[1743282751892,0.22827476,82652.0,82651.0,0.06452156]
[1743282752115,0.1210527,82640.0,82639.0,0.2174717]
[1743282752292,0.12193271,82640.0,82639.0,0.2183517]
[1743282752492,0.12193271,82640.0,82639.0,0.3394059]
[1743282752697,0.15323271,82640.0,82639.0,0.3394059]
[1743282753195,0.00088001,82640.0,82639.0,0.3394059]
[1743282753495,0.12193271,82640.0,82639.0,0.3394059]
[1743282753797,0.15273271,82640.0,82639.0,0.3394059]
[1743282753995,0.15273271,82640.0,82639.0,0.4039059]
[1743282754994,0.12193271,82640.0,82639.0,0.1864342]
[1743282759608,0.00088001,82640.0,82639.0,0.1864342]
[1743282759816,0.00018082,82648.0,82647.0,0.1210425]
[1743282760101,0.00106083,82648.0,82647.0,0.2185025]
[1743282760398,0.12218183,82648.0,82647.0,0.23375856]
[1743282761299,0.12218183,82648.0,82647.0,0.24994006]
[1743282762295,0.00114083,82648.0,82647.0,0.24994006]
[1743282763695,0.00114083,82648.0,82647.0,0.27600886]
[1743282764698,0.00018082,82648.0,82647.0,0.27600886]
[1743282765299,0.00018082,82648.0,82647.0,0.27623577]
[1743282767197,0.00018082,82648.0,82647.0,0.23375856]
[1743282767400,0.12122182,82648.0,82647.0,0.27598886]
[1743282768398,0.00018082,82648.0,82647.0,0.27598886]
[1743282769409,0.00018082,82648.0,82647.0,0.56595113]
[1743282771303,0.12122182,82648.0,82647.0,0.56595113]
[1743282771500,0.00018082,82648.0,82647.0,0.56595113]
[1743282772099,0.00018082,82648.0,82647.0,0.27598886]
[1743282772500,0.00018082,82648.0,82647.0,0.2607328]
[1743282773205,0.00018082,82648.0,82647.0,0.26055722]
[1743282774397,0.12122182,82648.0,82647.0,0.26055722]
[1743282774608,0.12210183,82648.0,82647.0,0.26055722]
[1743282778409,0.12210183,82648.0,82647.0,0.23467739]
[1743282779419,0.00018082,82648.0,82647.0,0.23467739]
[1743282779810,0.12122182,82648.0,82647.0,0.23467739]
[1743282780006,0.00018082,82648.0,82647.0,0.23467739]
[1743282780515,0.12122182,82648.0,82647.0,0.2185025]
[1743282780707,0.48290183,82648.0,82647.0,0.00096]
[1743282781118,0.51430183,82648.0,82647.0,0.00096]
[1743282782208,0.51430183,82648.0,82647.0,0.21848743]
[1743282783226,0.63529762,82648.0,82647.0,0.21848743]
[1743282785319,0.51430183,82648.0,82647.0,0.21848743]
[1743282786312,0.39326083,82648.0,82647.0,0.33952993]
[1743282786614,0.12210183,82648.0,82647.0,0.1220025]
[1743282787322,0.48290183,82648.0,82647.0,0.06496]
[1743282787510,0.51520183,82648.0,82647.0,0.06496]
[1743282788723,0.51520183,82648.0,82647.0,0.1860025]
[1743282791623,0.48290183,82648.0,82647.0,0.1860025]
[1743282792820,0.15320183,82648.0,82647.0,0.1860025]
[1743282793328,0.51400183,82648.0,82647.0,0.06496]
[1743282793718,0.51400183,82648.0,82647.0,0.00096]
[1743282795222,0.15320183,82648.0,82647.0,0.00096]
[1743282795420,0.51400183,82648.0,82647.0,0.00096]
[1743282796117,0.51400183,82648.0,82641.0,0.21752743]